Cogmind - Beta 11 X5 @@@ ROGUE MODE // 2021.06.14 @ 17:25:52 Player: blelm Result: Destroyed by D-53 Grenadier with Mini Grenade Launcher Performance ------------- Evolutions (0) 0 Regions Visited (2) 400 Robots Destroyed (12) 60 Value Destroyed (179) 179 Prototype IDs (0) 0 Alien Tech Used (0) 0 Bonus (-24) -24 TOTAL SCORE: 615 Bonus ------- Follower Combat Kills 35 Friendly Fire -59 Cogmind --------- Core Integrity 0/250 Matter 280/300 Energy 65/100 System Corruption 0% Temperature Cool (0) Movement Treading (160) Location -10/Mines Parts ------- > --- POWER (1) -------- (None) > --- PROPULSION (2) --- Light Treads Compact Wheel > --- UTILITY (2) ------ Large Storage Unit Visual Processing Unit > --- WEAPON (2) ------- (None) > --- INVENTORY (15) --- Light Ion Engine Light Treads High-capacity Storage Unit Structural Scanner EM Pulse Gun Assault Rifle Light Cannon Grenade Launcher Rocket Launcher Datajack Peak State ------------ > --- POWER ------------ Ion Engine > --- PROPULSION ------- Aluminum Leg Aluminum Leg > --- UTILITY ---------- Large Storage Unit Visual Processing Unit > --- WEAPON ----------- Assault Rifle Rocket Launcher > --- INVENTORY -------- Light Ion Engine Light Treads Light Treads Wheel Wheel Compact Wheel High-capacity Storage Unit Structural Scanner EM Pulse Gun Assault Rifle Light Cannon Grenade Launcher Datajack Mining Laser [Rating: 10] Favorites ----------- Power Ion Engine Engine Ion Engine Propulsion Aluminum Leg Treads Light Treads Leg Aluminum Leg Wheel Compact Wheel Utility Large Storage Unit Storage Large Storage Unit Processor Visual Processing Unit Weapon Assault Rifle Ballistic Gun Assault Rifle Launcher Grenade Launcher Special Weapon Mining Laser Build | -11 -10 -10 ------- Run | Scr Mat Min Slots Evolved . | . . . Power . | . . . Propulsion . | . . . Utility . | . . . Weapon . | . . . Parts Attached 10 | . 4 6 Power . | . . . Engine . | . . . Core . | . . . Reactor . | . . . Propulsion 3 | . . 3 Treads 1 | . . 1 Leg . | . . . Wheel 2 | . . 2 Hover . | . . . Flight . | . . . Utility 2 | . 2 . Device . | . . . Storage 1 | . 1 . Processor 1 | . 1 . Hackware . | . . . Protection . | . . . Artifact . | . . . Weapon 5 | . 2 3 Energy Gun . | . . . Energy Cannon . | . . . Ballistic Gun 2 | . 1 1 Ballistic Cannon . | . . . Launcher 2 | . 1 1 Special Weapon 1 | . . 1 Impact Weapon . | . . . Slashing Weapon . | . . . Piercing Weapon . | . . . Special Melee Weapon . | . . . Unidentified Prototypes . | . . . Parts Lost 6 | . . 6 Power 1 | . . 1 Propulsion 3 | . . 3 Utility . | . . . Weapon 2 | . . 2 Highest Loss Streak 6 | . . 6 Average Slot Usage (%) 96 | . 95 98 Engine 13 | . 14 13 Leg 27 | . 28 27 Storage 14 | . 14 14 Processor 11 | . 9 14 Ballistic Gun 26 | . 27 24 Naked Turns . | . . . Heaviest Build 34 | 14 34 29 Greatest Support 20 | 20 20 20 Greatest Overweight (x) 1 | . 1 1 Average Overweight (x) . | . . 1 Largest Inventory Capacity 15 | . 15 15 Average Capacity 14 | . 13 15 Most Carried 14 | . 13 14 Average Carried 10 | . 7 13 Final Capacity 15 | 8 15 15 Final Carried 13 | 6 13 10 Class Distribution -------------------- 100% | Mutant Dominant Class ---------------- Mutant | -10/Materials Mutant | -10/Mines Resources | -11 -10 -10 ----------- Run | Scr Mat Min Matter Collected 504 | 200 187 117 Remotely . | . . . Salvage Created 404 | . 207 197 Parts 24 | . 19 5 Haulers Intercepted 1 | . 1 . Recyclers Shooed 2 | . 2 . Parts Field Recycled . | . . . Retrieved Matter . | . . . Parts Self-Destructed . | . . . Prevented . | . . . Kills | -11 -10 -10 ------- Run | Scr Mat Min Combat Hostiles Destroyed 6 | . 5 1 Guns 5 | . 5 . AOE 1 | . . 1 Classes Destroyed 7 | . 6 1 Worker 1 | . 1 . Hauler 1 | . 1 . Recycler 2 | . . 2 Operator 1 | . 1 . Watcher 1 | . 1 . Swarmer 3 | . 3 . Grunt 3 | . 2 1 Best Kill Streak 4 | . 4 2 Combat Bots Only 3 | . 3 1 Max Kills in Single Turn 1 | . 1 1 Gunslinging . | . . . Exploded 1 | . . 1 Melee . | . . . Uniques/NPCs Destroyed . | . . . Combat | -11 -10 -10 -------- Run | Scr Mat Min Damage Taken 767 | . 148 619 Core 262 | . 21 241 Absorbed by Shields . | . . . Core Remaining (%) 100 | 100 . . Volleys Fired 42 | . 29 13 Largest 2 | . 2 2 Hottest 100 | . 40 100 Shots Fired 74 | . 55 19 Gun 64 | . 52 12 Cannon . | . . . Launcher 5 | . 3 2 Special 5 | . . 5 Kinetic 64 | . 52 12 Thermal 5 | . . 5 Explosive 5 | . 3 2 Electromagnetic . | . . . Robot Hit Streak 10 | . 10 4 Robot Miss Streak 3 | . 3 1 Penetration Max . | . . . Secondary Targets . | . . . Shots Hit Robots 41 | . 33 8 Core Hits 22 | . 14 8 Critical Kills . | . . . Critical Parts Destroyed . | . . . Critical Strikes . | . . . Melee Attacks . | . . . Impact . | . . . Slashing . | . . . Piercing . | . . . Sneak Attacks . | . . . Combat Hostiles . | . . . Follow-up Attacks . | . . . Damage Inflicted 692 | . 441 251 Guns 497 | . 389 108 Cannons . | . . . Explosions 195 | . 52 143 Melee . | . . . Ramming . | . . . Kinetic 497 | . 389 108 Thermal . | . . . Explosive 195 | . 52 143 Electromagnetic . | . . . Impact . | . . . Slashing . | . . . Piercing . | . . . Highest Corruption . | . . . Average Corruption . | . . . Corruption Purged . | . . . Overload Shots . | . . . Overflow Damage . | . . . Projectiles . | . . . Explosions . | . . . Melee . | . . . Knockbacks . | . . . Impact . | . . . Kinetic . | . . . Secondary . | . . . Self-Inflicted Damage 74 | . 39 35 Shots 2 | . 1 1 Rammed . | . . . Targets Rammed . | . . . Kicked . | . . . Crushed . | . . . Highest Temperature 60 | . 1 60 Average Temperature 23 | . 1 24 Received Heat Transfer 66 | . 42 24 Siege Activations . | . . . Robots Corrupted . | . . . Combat Hostiles . | . . . Parts Fried . | . . . Impact Corruptions . | . . . Robots Melted . | . . . Combat Hostiles . | . . . Parts Melted . | . . . Heat Transferred . | . . . Parts Sabotaged . | . . . Parts Stolen . | . . . Parts Stripped . | . . . Power Chain Reactions . | . . . Missiles Intercepted . | . . . Alert | -11 -10 -10 ------- Run | Scr Mat Min Peak Influence 183 | . 183 69 Initial 1 | . . 1 Average 49 | . 58 35 Maximum Alert Level . | . . . Low Security (%) 100 | . 100 100 Level 1 . | . . . Level 2 . | . . . Level 3 . | . . . Level 4 . | . . . Level 5 . | . . . High Security . | . . . Max Security . | . . . Squads Dispatched 1 | . 1 . Investigation . | . . . Extermination . | . . . Reinforcement 1 | . 1 . Assault . | . . . Garrison . | . . . Intercept . | . . . Construction Impeded . | . . . Haulers Reinforced . | . . . Cargo Convoy Interrupts . | . . . Stealth | -11 -10 -10 --------- Run | Scr Mat Min Distress Signals . | . . . Communications Jammed . | . . . Distress Signals . | . . . Times Spotted 15 | . 11 4 Peak Tracking Total 3 | . 3 2 Tactical Retreats . | . . . Traps | -11 -10 -10 ------- Run | Scr Mat Min Traps Triggered . | . . . Indirectly . | . . . Trap Hack Attempts . | . . . Triggered . | . . . Disarmed . | . . . Reprogrammed . | . . . Reused . | . . . Traps Extracted . | . . . Installed . | . . . Triggered . | . . . Machines | -11 -10 -10 ---------- Run | Scr Mat Min Machines Disabled . | . . . Max in Single Turn . | . . . Machines Sabotaged . | . . . Garrisons Compromised . | . . . Overloaded Fab Kills . | . . . Fab Network Shutdowns . | . . . Hacking | -11 -10 -10 --------- Run | Scr Mat Min Machines Accessed 2 | . 2 . Terminals 2 | . 2 . Fabricators . | . . . Repair Stations . | . . . Recycling Units . | . . . Scanalyzers . | . . . Garrison Access . | . . . Total Hacks 5 | . 5 . Successful 2 | . 2 . Failed 3 | . 3 . Catastrophic 1 | . 1 . Database Lockouts . | . . . Manual 5 | . 5 . Terminals 5 | . 5 . Fabricators . | . . . Repair Stations . | . . . Recycling Units . | . . . Scanalyzers . | . . . Garrison Access . | . . . Terminal Hacks 2 | . 2 . Part Schematic 1 | . 1 . Branch Access Points 1 | . 1 . Fabricator Hacks . | . . . Repair Station Hacks . | . . . Recycling Unit Hacks . | . . . Scanalyzer . | . . . Garrison Access Hacks . | . . . Unauthorized Hacks . | . . . Terminals . | . . . Fabricators . | . . . Repair Stations . | . . . Recycling Units . | . . . Scanalyzers . | . . . Garrison Access . | . . . Data Cores Recovered . | . . . Used . | . . . Hacking Detections 2 | . 2 . Full Trace Events . | . . . Feedback Events . | . . . Feedback Blocked . | . . . Robot Schematics Acquired . | . . . Robots Built . | . . . Matter . | . . . Time . | . . . Total Robot Build Rating . | . . . Part Schematics Acquired 1 | . 1 . Parts Built . | . . . Matter . | . . . Time . | . . . Total Part Build Rating . | . . . Parts Repaired . | . . . Time . | . . . Parts Recycled . | . . . Recycled Matter . | . . . Retrieved Matter . | . . . Retrieved Components . | . . . Parts Scanalyzed . | . . . Part Schematics Acquired . | . . . Parts Damaged . | . . . Bothacking | -11 -10 -10 ------------ Run | Scr Mat Min Used RIF Installer . | . . . Robots Hacked . | . . . Non-combat . | . . . Combat . | . . . Robot Hacks Applied . | . . . Relay Couplers Released . | . . . Robots Rewired . | . . . Allies Hacked . | . . . Hacks Repelled . | . . . Allies | -11 -10 -10 -------- Run | Scr Mat Min Total Allies 3 | . . 3 Largest Group 3 | . . 3 Highest-Rated Group 40 | . . 40 Highest-Rated Ally 16 | . . 16 Total Orders 1 | . . 1 ROAM 1 | . . 1 Ally Attacks 7 | . . 7 Total Damage 68 | . . 68 Kills 1 | . . 1 Allies Corrupted . | . . . Allies Melted . | . . . Intel | -11 -10 -10 ------- Run | Scr Mat Min Robot Analysis Total . | . . . Derelict Logs Recovered 1 | . . 1 Drone Launches . | . . . Drone Recoveries . | . . . Exploration | -11 -10 -10 ------------- Run | Scr Mat Min Turns Passed 914 | . 549 365 Spaces Moved 404 | 1 246 157 Core . | . . . Treads . | . . . Legs 399 | 1 246 152 Wheels 5 | . . 5 Hover . | . . . Flight . | . . . Fastest Speed 115 | 120 120 115 Average Speed 188 | 120 182 197 Slowest Speed 200 | 120 200 200 Overloaded Moves . | . . . Propulsion Burnouts . | . . . Robots Hopped . | . . . Cave-ins Triggered . | . . . Exploration Rate (%) 28 | 2 41 41 Regions Visited 2 Branch Regions 1 Pre-discovered Areas 1 | . . 1 Known Exits Taken 1 | . 1 . Unknown Exits Taken 1 | 1 . . Scrap Searched 1 | . . 1 Spaces Dug 3 | . . 3 Terrain Destroyed 50 | . 29 21 Melee . | . . . Projectile 5 | . . 5 AOE 45 | . 29 16 Terrain Rammed . | . . . Walls Destroyed . | . . . Machines Disabled . | . . . Actions | -11 -10 -10 --------- Run | Scr Mat Min Total 472 | . 289 183 Wait 6 | . 3 3 Move 402 | . 245 157 Hop . | . . . Pick Up 9 | . 7 2 Fast Attach 2 | . 2 . Attach 3 | . . 3 Detach . | . . . Swap 5 | . 2 3 Drop 3 | . 1 2 Fire 42 | . 29 13 Melee . | . . . Ram . | . . . Kick . | . . . Crush . | . . . Escape Stasis . | . . . Rewire . | . . . Trap . | . . . Miscellaneous . | . . . Route ------- -11/Scrapyard -10/Materials (discovered 2 exits: [*Mat] / *Min) -10/Mines History --------- Turn | Location | Event 1 | -11/Scrapyard | Discovered new exit (range 0) 1 | -11/Scrapyard | Entered Materials 114 | -10/Materials | Identified exit to Mines 300 | -10/Materials | Build established: Mutant 325 | -10/Materials | Discovered new exit (range 12) 550 | -10/Materials | Entered Mines 560 | -10/Mines | Assisted by bots powering up and referring to "LRC-V3" 627 | -10/Mines | Received a Rocket Launcher from a helpful Derelict 785 | -10/Mines | Learned location of Zion (-6) 835 | -10/Mines | A weapon hastily lodged in a ceiling crevice suddenly fell to the ground 838 | -10/Mines | Assembled infested the area 843 | -10/Mines | Assisted by a Guerilla fighting off Assembled 910 | -10/Mines | Core integrity fell below 50% 914 | -10/Mines | Core integrity fell below 20% 915 | -10/Mines | Destroyed by D-53 Grenadier with Mini Grenade Launcher Last Messages --------------- 00905_ Aluminum Leg destroyed. 00906_ The unstable cave ceiling collapses. 00907_ Ion Engine destroyed. 00907_ Assault Rifle destroyed. 00907_ Aluminum Leg destroyed. 00908_ K-01 Serf collects debris. 00909_ U-05 Engineer lays Concrete. 00910_ The unstable cave ceiling collapses. 00910_ U-05 Engineer lays Concrete. 00911_ The unstable cave ceiling collapses. 00911_ K-01 Serf crushed by falling debris. 00911_ K-01 Serf destroyed. 00911_ The unstable cave ceiling collapses. 00912_ U-05 Engineer lays Concrete. 00913_ The unstable cave ceiling collapses. 00913_ U-05 Engineer lays Concrete. 00913_ Com. Wheel destroyed. 00913_ D-53 Grenadier destroyed. 00914_ The unstable cave ceiling collapses. 00914_ U-05 Engineer builds a Wall. Map ----- +----------------------------------------------------+ | | | | | | | | | | | | | | | ?????????????????????????????????????????? | | ?????????????????????????????????????????? | | ?????????????????????????????????????????? | | ?????????????????????????????????????????? | | ?????????????????????????????????????????? | | ?????????????????????????????????????????? | | ?????????????????????????????????????????? | | ?????????????????????????????????????????? | | ?????????????????????????????????????????? | | ????????????####?????????????????????????? | | ??????###?### ##?????????????? ?????????? | | ??????# ### ##??????????? ????????? | | ??????## ##???????? ????????? | | ?????## ###???? % ????????? | | ?????# # ##?# * ?????????? | | ?????## # ??????????? | | ?????# ???????????? | | ???### # # #??????? | | ??## @ #????????????? | | ??# d #?????????????? | | ??# # #?????????????? | | ?## # ##???????????????? | | ?# ## # % ###???????????????? | | ?# ## = ###?????????????????? | | ?# ###### # #???????????????????? | | ?## ##?? #???????????????????? | | ??# ### #???????????????????? | | ??## # # #???????????????????? | | ???## %!% % ##???????????????????? | | ????# * u #????###?????????????? | | ????## ### ##??## ##??????#?????? | | ?????##### # ?# ##???# #????? ????? | | ?????????####?# ##??## ##?## ????? | | ??????????????# %#### ## ????? | | ???######?????# " ????? | | ??## ##????## #???????? | | ??# ##????# #????????? | | ??# #????# ##????????? | | ??# #????# #####?????????? | | ???# ###??## ##????????#????? | | ???### ##### ##?????? ##???? | | ?????## # ## ##### ##??? | | ?????## ## ! #??? | +----------------------------------------------------+ Best States ------------- Heat Dissipation 25 Energy Generation 10 Energy Capacity 250 Matter Stores 300 Matter Capacity 300 Sight Range 18 Terrain Scan Density 10 Evasion (%) 55 Item Schematics ----------------- Huge Storage Unit | -10/Materials | Hacked Robot Schematics ------------------ None Fabricated ------------ Nothing Alien Tech Used ----------------- None Achievements -------------- None Challenges ------------ None Game ------ Seed ComponentPoweredImmobilizer Manual? 0 Play Time 00:07:10 Cumulative 390.3 hours Start 2021.06.14 @ 16:58:08 End 2021.06.14 @ 17:25:52 Sessions 1 Manual Loads 0 Difficulty Rogue Special Mode None Game No. 212 Rogue 212 Adventurer 0 Explorer 0 Win Type - Total 15 Types 1/5/2/1/0/1/4/1/0 Lore% 88 Gallery% 90 Achievement% 72 Wizard Run 0 Options --------- ASCII 1 Keyboard 1 Movement Vi Keybinds 0 Fullscreen 1 Font 16/Terminus Map View 75x55 Tactical HUD 1 Map Filters NONE Filters NONE Steam 1 RUN: 1aaba682-50cc-45c4-8553-dd39b52d8b03